[Event "December 5 Late 2023"]
[Site "https://www.chess.com"]
[Date "2023.12.05"]
[Round "8"]
[White "Mendez Fortes, Eduardo Jesus"]
[Black "Lopusiewicz, Piotr"]
[Result "1-0"]
[Board "56"]
[TimeControl "180+1"]
[WhiteFideId "3502376"]
[BlackFideId "1116029"]
[WhiteElo "2586"]
[BlackElo "2435"]
[WhiteTeam "CUB"]
[BlackTeam "POL"]
[WhiteClock "0:01:08"]
[BlackClock "0:00:00"]

1. e4 {[%clk 0:03:00]}  e5 {[%clk 0:03:00]} 2. Nf3 {[%clk 0:03:01]}  Nc6 {[%clk 0:03:00]} 3. Bb5 {[%clk 0:03:02]}  a6 {[%clk 0:03:01]} 4. Ba4 {[%clk 0:03:02]}  Nf6 {[%clk 0:03:01]} 5. O-O {[%clk 0:03:03]}  Be7 {[%clk 0:03:02]} 6. Re1 {[%clk 0:03:04]}  b5 {[%clk 0:03:02]} 7. Bb3 {[%clk 0:03:04]}  O-O {[%clk 0:03:02]} 8. c3 {[%clk 0:03:05]}  d5 {[%clk 0:03:02]} 9. exd5 {[%clk 0:03:06]}  Nxd5 {[%clk 0:03:02]} 10. Nxe5 {[%clk 0:03:07]}  Nxe5 {[%clk 0:03:03]} 11. Rxe5 {[%clk 0:03:07]}  Bb7 {[%clk 0:03:04]} 12. d4 {[%clk 0:02:52]}  Bf6 {[%clk 0:03:04]} 13. Re1 {[%clk 0:02:52]}  Re8 {[%clk 0:03:04]} 14. Na3 {[%clk 0:02:50]}  b4 {[%clk 0:02:55]} 15. cxb4 {[%clk 0:02:40]}  Nxb4 {[%clk 0:02:50]} 16. Rxe8+ {[%clk 0:02:35]}  Qxe8 {[%clk 0:02:50]} 17. Nc2 {[%clk 0:02:34]}  Nxc2 {[%clk 0:02:18]} 18. Bxc2 {[%clk 0:02:34]}  Qc6 {[%clk 0:02:18]} 19. f3 {[%clk 0:02:23]}  Rd8 {[%clk 0:01:43]} 20. Be3 {[%clk 0:02:17]}  Qe6 {[%clk 0:01:24]} 21. Bf2 {[%clk 0:02:13]}  c5 {[%clk 0:01:15]} 22. Bb3 {[%clk 0:02:12]}  Qf5 {[%clk 0:00:58]} 23. Qe2 {[%clk 0:01:57]}  cxd4 {[%clk 0:00:54]} 24. Re1 {[%clk 0:01:55]}  g6 {[%clk 0:00:46]} 25. Rd1 {[%clk 0:01:42]}  d3 {[%clk 0:00:40]} 26. Qd2 {[%clk 0:01:42]}  Bg5 {[%clk 0:00:32]} 27. Qb4 {[%clk 0:01:41]}  Qb5 {[%clk 0:00:22]} 28. Qc3 {[%clk 0:01:25]}  Qc6 {[%clk 0:00:14]} 29. Qxc6 {[%clk 0:01:24]}  Bxc6 {[%clk 0:00:14]} 30. Bc4 {[%clk 0:01:22]}  Bb5 {[%clk 0:00:13]} 31. Bxb5 {[%clk 0:01:22]}  axb5 {[%clk 0:00:14]} 32. g3 {[%clk 0:01:22]}  Bf6 {[%clk 0:00:13]} 33. b3 {[%clk 0:01:21]}  Bc3 {[%clk 0:00:13]} 34. f4 {[%clk 0:01:16]}  b4 {[%clk 0:00:13]} 35. Kg2 {[%clk 0:01:16]}  f5 {[%clk 0:00:13]} 36. Kf3 {[%clk 0:01:16]}  Kf7 {[%clk 0:00:14]} 37. Ke3 {[%clk 0:01:16]}  Bd4+ {[%clk 0:00:12]} 38. Kf3 {[%clk 0:01:14]}  Bxf2 {[%clk 0:00:12]} 39. Kxf2 {[%clk 0:01:15]}  Ra8 {[%clk 0:00:07]} 40. Rd2 {[%clk 0:01:14]}  Ke6 {[%clk 0:00:07]} 41. Ke3 {[%clk 0:01:14]}  Rc8 {[%clk 0:00:06]} 42. Rxd3 {[%clk 0:01:14]}  Rc2 {[%clk 0:00:05]} 43. Rd2 {[%clk 0:01:13]}  Rc3+ {[%clk 0:00:05]} 44. Kd4 {[%clk 0:01:14]}  Kd6 {[%clk 0:00:05]} 45. Rb2 {[%clk 0:01:12]}  Rf3 {[%clk 0:00:04]} 46. Kc4 {[%clk 0:01:12]}  h5 {[%clk 0:00:02]} 47. Kxb4 {[%clk 0:01:11]}  h4 {[%clk 0:00:02]} 48. Rg2 {[%clk 0:01:11]}  h3 {[%clk 0:00:03]} 49. Rc2 {[%clk 0:01:11]}  Rf1 {[%clk 0:00:02]} 50. a4 {[%clk 0:01:10]}  Rg1 {[%clk 0:00:03]} 51. Rc8 {[%clk 0:01:07]}  Rg2 {[%clk 0:00:01]} 52. Rh8 {[%clk 0:01:07]}  Rxh2 {[%clk 0:00:00]} 53. a5 {[%clk 0:01:08]} 1-0

[Event "December 5 Late 2023"]
[Site "https://www.chess.com"]
[Date "2023.12.05"]
[Round "8"]
[White "Chaika, Vitalii"]
[Black "Garcia Ramos, Daniel"]
[Result "0-1"]
[Board "57"]
[TimeControl "180+1"]
[WhiteFideId "14111802"]
[BlackFideId "32010311"]
[WhiteElo "2421"]
[BlackElo "2583"]
[WhiteTeam "UKR"]
[BlackTeam "ESP"]
[WhiteClock "0:00:02"]
[BlackClock "0:00:29"]

1. d4 {[%clk 0:03:00]}  Nf6 {[%clk 0:02:59]} 2. Bf4 {[%clk 0:03:01]}  b6 {[%clk 0:02:58]} 3. e3 {[%clk 0:03:01]}  Bb7 {[%clk 0:02:59]} 4. h3 {[%clk 0:03:02]}  g6 {[%clk 0:03:00]} 5. Nf3 {[%clk 0:03:02]}  Bg7 {[%clk 0:03:00]} 6. Be2 {[%clk 0:03:02]}  O-O {[%clk 0:03:01]} 7. O-O {[%clk 0:03:03]}  d6 {[%clk 0:03:00]} 8. a4 {[%clk 0:03:02]}  a6 {[%clk 0:02:59]} 9. Nbd2 {[%clk 0:03:00]}  Nbd7 {[%clk 0:02:59]} 10. c3 {[%clk 0:03:01]}  e6 {[%clk 0:03:00]} 11. Bh2 {[%clk 0:03:00]}  Qe7 {[%clk 0:03:00]} 12. Qb3 {[%clk 0:03:00]}  Ne4 {[%clk 0:02:52]} 13. Nxe4 {[%clk 0:02:59]}  Bxe4 {[%clk 0:02:51]} 14. Nd2 {[%clk 0:03:00]}  Bb7 {[%clk 0:02:48]} 15. Bf3 {[%clk 0:03:00]}  Bxf3 {[%clk 0:02:46]} 16. Nxf3 {[%clk 0:03:01]}  e5 {[%clk 0:02:35]} 17. Qc4 {[%clk 0:03:00]}  e4 {[%clk 0:02:25]} 18. Nd2 {[%clk 0:03:00]}  Ra7 {[%clk 0:02:23]} 19. Qc6 {[%clk 0:02:53]}  f5 {[%clk 0:02:18]} 20. a5 {[%clk 0:02:43]}  b5 {[%clk 0:02:13]} 21. c4 {[%clk 0:02:39]}  Rb8 {[%clk 0:02:03]} 22. Rfc1 {[%clk 0:02:00]}  Nf6 {[%clk 0:01:53]} 23. Rc2 {[%clk 0:01:31]}  Qd7 {[%clk 0:01:30]} 24. cxb5 {[%clk 0:01:15]}  Rxb5 {[%clk 0:01:29]} 25. Qc4+ {[%clk 0:01:04]}  Nd5 {[%clk 0:01:24]} 26. Qa4 {[%clk 0:00:47]}  Rab7 {[%clk 0:01:16]} 27. Rac1 {[%clk 0:00:44]}  Nb4 {[%clk 0:01:05]} 28. Rc3 {[%clk 0:00:35]}  c6 {[%clk 0:01:00]} 29. Nc4 {[%clk 0:00:31]}  Bf8 {[%clk 0:00:56]} 30. Nb6 {[%clk 0:00:31]}  Qf7 {[%clk 0:00:51]} 31. Ra1 {[%clk 0:00:18]}  c5 {[%clk 0:00:47]} 32. dxc5 {[%clk 0:00:17]}  dxc5 {[%clk 0:00:48]} 33. Qd1 {[%clk 0:00:15]}  Nd3 {[%clk 0:00:44]} 34. Nc4 {[%clk 0:00:08]}  Nxb2 {[%clk 0:00:41]} 35. Nxb2 {[%clk 0:00:06]}  Rxb2 {[%clk 0:00:41]} 36. Be5 {[%clk 0:00:07]}  R2b3 {[%clk 0:00:33]} 37. Rc4 {[%clk 0:00:06]}  Qxc4 {[%clk 0:00:30]} 38. Rc1 {[%clk 0:00:02]}  Qxc1 {[%clk 0:00:29]} 39. Qxc1 {[%clk 0:00:02]}  Rb1 {[%clk 0:00:29]} 0-1

[Event "December 5 Late 2023"]
[Site "https://www.chess.com"]
[Date "2023.12.05"]
[Round "8"]
[White "Iskusnyh, Sergei"]
[Black "YurasovMat-2012"]
[Result "1-0"]
[Board "59"]
[TimeControl "180+1"]
[WhiteFideId "4120027"]
[WhiteElo "2575"]
[BlackElo "2403"]
[WhiteTeam "RUS"]
[WhiteClock "0:00:24"]
[BlackClock "0:00:00"]

1. d4 {[%clk 0:03:00]}  d5 {[%clk 0:02:58]} 2. c4 {[%clk 0:03:01]}  c6 {[%clk 0:02:58]} 3. Nf3 {[%clk 0:03:01]}  Nf6 {[%clk 0:02:57]} 4. e3 {[%clk 0:03:01]}  Bf5 {[%clk 0:02:51]} 5. Nc3 {[%clk 0:02:56]}  e6 {[%clk 0:02:51]} 6. Nh4 {[%clk 0:02:52]}  Be4 {[%clk 0:02:49]} 7. f3 {[%clk 0:02:51]}  Bg6 {[%clk 0:02:49]} 8. Nxg6 {[%clk 0:02:51]}  hxg6 {[%clk 0:02:49]} 9. Bd2 {[%clk 0:02:51]}  Bd6 {[%clk 0:02:49]} 10. Qb3 {[%clk 0:02:46]}  Nbd7 {[%clk 0:02:39]} 11. Qxb7 {[%clk 0:02:30]}  Bxh2 {[%clk 0:02:37]} 12. O-O-O {[%clk 0:02:26]}  Qc8 {[%clk 0:02:13]} 13. Qb3 {[%clk 0:02:01]}  Rb8 {[%clk 0:02:09]} 14. Qc2 {[%clk 0:01:54]}  Rh7 {[%clk 0:02:06]} 15. Bd3 {[%clk 0:01:45]}  Kf8 {[%clk 0:02:02]} 16. g4 {[%clk 0:01:43]}  Kg8 {[%clk 0:01:48]} 17. g5 {[%clk 0:01:36]}  Ne8 {[%clk 0:01:47]} 18. f4 {[%clk 0:01:30]}  Nd6 {[%clk 0:01:46]} 19. c5 {[%clk 0:01:28]}  Nf5 {[%clk 0:01:45]} 20. Bxf5 {[%clk 0:01:27]}  exf5 {[%clk 0:01:44]} 21. Kb1 {[%clk 0:01:09]}  Rh5 {[%clk 0:01:01]} 22. Be1 {[%clk 0:00:59]}  Qe8 {[%clk 0:00:39]} 23. Rxh2 {[%clk 0:00:55]}  Rxh2 {[%clk 0:00:37]} 24. Qxh2 {[%clk 0:00:55]}  Qxe3 {[%clk 0:00:36]} 25. Qg3 {[%clk 0:00:50]}  Qe7 {[%clk 0:00:18]} 26. Bd2 {[%clk 0:00:49]}  Nf8 {[%clk 0:00:17]} 27. Rh1 {[%clk 0:00:47]}  Qb7 {[%clk 0:00:16]} 28. Bc1 {[%clk 0:00:46]}  Qb4 {[%clk 0:00:11]} 29. Qh3 {[%clk 0:00:45]}  f6 {[%clk 0:00:11]} 30. gxf6 {[%clk 0:00:44]}  gxf6 {[%clk 0:00:12]} 31. Qe3 {[%clk 0:00:39]}  Kf7 {[%clk 0:00:13]} 32. Re1 {[%clk 0:00:38]}  Qb7 {[%clk 0:00:10]} 33. a3 {[%clk 0:00:36]}  Qd7 {[%clk 0:00:09]} 34. Rh1 {[%clk 0:00:35]}  Kg7 {[%clk 0:00:08]} 35. Qh3 {[%clk 0:00:35]}  Kf7 {[%clk 0:00:06]} 36. Qh8 {[%clk 0:00:34]}  Re8 {[%clk 0:00:03]} 37. Ka2 {[%clk 0:00:32]}  Re6 {[%clk 0:00:01]} 38. Rh7+ {[%clk 0:00:25]}  Ke8 {[%clk 0:00:00]} 39. Rxd7 {[%clk 0:00:24]} 1-0

[Event "December 5 Late 2023"]
[Site "https://www.chess.com"]
[Date "2023.12.05"]
[Round "8"]
[White "Cervantes Landeiro, Thalia"]
[Black "Paragua, Megan Althea"]
[Result "1-0"]
[Board "65"]
[TimeControl "180+1"]
[WhiteFideId "3520498"]
[BlackFideId "30973007"]
[WhiteElo "2547"]
[BlackElo "2311"]
[WhiteTeam "USA"]
[BlackTeam "USA"]
[WhiteClock "0:00:40"]
[BlackClock "0:00:07"]

1. d4 {[%clk 0:03:00]}  Nf6 {[%clk 0:02:56]} 2. c4 {[%clk 0:03:01]}  e6 {[%clk 0:02:51]} 3. Nf3 {[%clk 0:03:00]}  d5 {[%clk 0:02:49]} 4. Nc3 {[%clk 0:03:00]}  Be7 {[%clk 0:02:48]} 5. Bf4 {[%clk 0:03:00]}  O-O {[%clk 0:02:46]} 6. e3 {[%clk 0:03:00]}  c5 {[%clk 0:02:46]} 7. dxc5 {[%clk 0:02:58]}  Bxc5 {[%clk 0:02:45]} 8. cxd5 {[%clk 0:02:59]}  Nxd5 {[%clk 0:02:40]} 9. Nxd5 {[%clk 0:02:59]}  exd5 {[%clk 0:02:39]} 10. Bd3 {[%clk 0:02:58]}  Nc6 {[%clk 0:02:37]} 11. O-O {[%clk 0:02:57]}  Be6 {[%clk 0:02:34]} 12. Bxh7+ {[%clk 0:02:49]}  Kxh7 {[%clk 0:02:31]} 13. Qc2+ {[%clk 0:02:49]}  Kg8 {[%clk 0:02:25]} 14. Qxc5 {[%clk 0:02:48]}  Qb6 {[%clk 0:02:23]} 15. Qxb6 {[%clk 0:02:46]}  axb6 {[%clk 0:02:22]} 16. a3 {[%clk 0:02:39]}  Na5 {[%clk 0:02:21]} 17. Nd2 {[%clk 0:02:09]}  Rfc8 {[%clk 0:02:19]} 18. Rac1 {[%clk 0:02:08]}  Nc4 {[%clk 0:02:17]} 19. Nxc4 {[%clk 0:02:03]}  dxc4 {[%clk 0:02:17]} 20. Be5 {[%clk 0:02:02]}  b5 {[%clk 0:02:16]} 21. Bc3 {[%clk 0:02:02]}  Rd8 {[%clk 0:02:15]} 22. Rcd1 {[%clk 0:02:00]}  Rd3 {[%clk 0:01:59]} 23. Bd4 {[%clk 0:01:42]}  Bf5 {[%clk 0:01:54]} 24. f3 {[%clk 0:01:39]}  Rxd1 {[%clk 0:01:52]} 25. Rxd1 {[%clk 0:01:39]}  Bd3 {[%clk 0:01:53]} 26. Kf2 {[%clk 0:01:38]}  f6 {[%clk 0:01:50]} 27. Bc3 {[%clk 0:01:37]}  Kf7 {[%clk 0:01:50]} 28. e4 {[%clk 0:01:36]}  Ke6 {[%clk 0:01:50]} 29. Ke3 {[%clk 0:01:35]}  Rd8 {[%clk 0:01:48]} 30. h3 {[%clk 0:01:33]}  Rd7 {[%clk 0:01:48]} 31. g3 {[%clk 0:01:16]}  Rd8 {[%clk 0:01:46]} 32. f4 {[%clk 0:01:14]}  Rh8 {[%clk 0:01:44]} 33. h4 {[%clk 0:01:14]}  Re8 {[%clk 0:01:42]} 34. e5 {[%clk 0:01:11]}  f5 {[%clk 0:01:29]} 35. Kd4 {[%clk 0:01:07]}  b6 {[%clk 0:01:26]} 36. Ke3 {[%clk 0:01:07]}  g6 {[%clk 0:01:24]} 37. Bd4 {[%clk 0:01:06]}  Rb8 {[%clk 0:01:21]} 38. Rh1 {[%clk 0:01:00]}  Be4 {[%clk 0:01:19]} 39. Rh2 {[%clk 0:01:01]}  Rb7 {[%clk 0:00:56]} 40. h5 {[%clk 0:01:00]}  Rh7 {[%clk 0:00:56]} 41. h6 {[%clk 0:00:59]}  Kd5 {[%clk 0:00:53]} 42. Bxb6 {[%clk 0:00:59]}  Bd3 {[%clk 0:00:53]} 43. Bd4 {[%clk 0:00:54]}  Be4 {[%clk 0:00:50]} 44. Bc3 {[%clk 0:00:54]}  Bd3 {[%clk 0:00:51]} 45. Bb4 {[%clk 0:00:54]}  Be4 {[%clk 0:00:50]} 46. Bf8 {[%clk 0:00:54]}  Bd3 {[%clk 0:00:45]} 47. Bg7 {[%clk 0:00:54]}  Be4 {[%clk 0:00:46]} 48. Rd2+ {[%clk 0:00:53]}  Bd3 {[%clk 0:00:46]} 49. Rd1 {[%clk 0:00:51]}  Ke6 {[%clk 0:00:43]} 50. Kd4 {[%clk 0:00:48]}  Be2 {[%clk 0:00:35]} 51. Ra1 {[%clk 0:00:46]}  Kd7 {[%clk 0:00:22]} 52. Kc5 {[%clk 0:00:46]}  Ke6 {[%clk 0:00:19]} 53. Rc1 {[%clk 0:00:42]}  Kd7 {[%clk 0:00:17]} 54. Rc3 {[%clk 0:00:42]}  Bd3 {[%clk 0:00:16]} 55. Kxb5 {[%clk 0:00:42]}  Ke6 {[%clk 0:00:16]} 56. Kb6 {[%clk 0:00:41]}  Kd5 {[%clk 0:00:16]} 57. a4 {[%clk 0:00:41]}  g5 {[%clk 0:00:16]} 58. fxg5 {[%clk 0:00:40]}  f4 {[%clk 0:00:16]} 59. gxf4 {[%clk 0:00:40]}  Be4 {[%clk 0:00:13]} 60. a5 {[%clk 0:00:41]}  Bf5 {[%clk 0:00:13]} 61. a6 {[%clk 0:00:41]}  Be4 {[%clk 0:00:12]} 62. a7 {[%clk 0:00:41]}  Ke6 {[%clk 0:00:07]} 63. Rxc4 {[%clk 0:00:40]} 1-0

[Event "December 5 Late 2023"]
[Site "https://www.chess.com"]
[Date "2023.12.05"]
[Round "8"]
[White "Annaberdiyev, Meylis"]
[Black "Dobre, Claudiu-Cristian"]
[Result "1-0"]
[Board "66"]
[TimeControl "180+1"]
[WhiteFideId "14000563"]
[BlackFideId "1211854"]
[WhiteElo "2683"]
[BlackElo "2499"]
[WhiteTeam "TKM"]
[BlackTeam "ROU"]
[WhiteClock "0:01:41"]
[BlackClock "0:00:07"]

1. e4 {[%clk 0:03:00]}  e5 {[%clk 0:02:58]} 2. Nf3 {[%clk 0:02:59]}  Nf6 {[%clk 0:02:59]} 3. d4 {[%clk 0:02:58]}  Nxe4 {[%clk 0:02:58]} 4. Bd3 {[%clk 0:02:56]}  Nc6 {[%clk 0:02:58]} 5. dxe5 {[%clk 0:02:47]}  Nc5 {[%clk 0:02:52]} 6. O-O {[%clk 0:02:43]}  Be7 {[%clk 0:02:04]} 7. Nc3 {[%clk 0:02:41]}  O-O {[%clk 0:02:04]} 8. Nd5 {[%clk 0:02:37]}  d6 {[%clk 0:01:39]} 9. Nxe7+ {[%clk 0:02:27]}  Nxe7 {[%clk 0:01:38]} 10. Bg5 {[%clk 0:02:08]}  h6 {[%clk 0:01:38]} 11. Bh4 {[%clk 0:02:02]}  dxe5 {[%clk 0:01:22]} 12. Bh7+ {[%clk 0:01:59]}  Kxh7 {[%clk 0:01:16]} 13. Qxd8 {[%clk 0:02:00]}  Rxd8 {[%clk 0:01:15]} 14. Bxe7 {[%clk 0:02:01]}  Rd6 {[%clk 0:00:44]} 15. Bxd6 {[%clk 0:01:58]}  cxd6 {[%clk 0:00:44]} 16. Rad1 {[%clk 0:01:59]}  Ne4 {[%clk 0:00:31]} 17. Rfe1 {[%clk 0:01:56]}  Ng5 {[%clk 0:00:19]} 18. Nxg5+ {[%clk 0:01:54]}  hxg5 {[%clk 0:00:19]} 19. Rxd6 {[%clk 0:01:55]}  Be6 {[%clk 0:00:19]} 20. Rxe5 {[%clk 0:01:54]}  Rc8 {[%clk 0:00:17]} 21. c3 {[%clk 0:01:54]}  Bxa2 {[%clk 0:00:16]} 22. Rxg5 {[%clk 0:01:50]}  Re8 {[%clk 0:00:15]} 23. h4 {[%clk 0:01:41]}  Re2 {[%clk 0:00:07]} 24. Rh5+ {[%clk 0:01:41]} 1-0

[Event "December 5 Late 2023"]
[Site "https://www.chess.com"]
[Date "2023.12.05"]
[Round "8"]
[White "Khruschiov, Alexey"]
[Black "Ventura Bolet, Maxim"]
[Result "1-0"]
[Board "67"]
[TimeControl "180+1"]
[WhiteFideId "13900544"]
[BlackFideId "22238824"]
[WhiteElo "2669"]
[BlackElo "2480"]
[WhiteTeam "MDA"]
[BlackTeam "ESP"]
[WhiteClock "0:01:25"]
[BlackClock "0:00:00"]

1. g3 {[%clk 0:03:00]}  g6 {[%clk 0:02:59]} 2. Bg2 {[%clk 0:03:01]}  Bg7 {[%clk 0:03:00]} 3. e4 {[%clk 0:03:01]}  e5 {[%clk 0:02:59]} 4. Ne2 {[%clk 0:03:01]}  Ne7 {[%clk 0:02:59]} 5. d4 {[%clk 0:03:01]}  d6 {[%clk 0:02:56]} 6. O-O {[%clk 0:03:01]}  O-O {[%clk 0:02:57]} 7. c4 {[%clk 0:03:00]}  Nbc6 {[%clk 0:02:55]} 8. Be3 {[%clk 0:03:00]}  exd4 {[%clk 0:02:43]} 9. Nxd4 {[%clk 0:03:00]}  Ne5 {[%clk 0:02:43]} 10. Na3 {[%clk 0:02:44]}  N7c6 {[%clk 0:02:41]} 11. h3 {[%clk 0:02:41]}  Be6 {[%clk 0:02:09]} 12. Nxe6 {[%clk 0:02:38]}  fxe6 {[%clk 0:02:09]} 13. f4 {[%clk 0:02:33]}  Nd7 {[%clk 0:02:06]} 14. Qd2 {[%clk 0:02:32]}  Qf6 {[%clk 0:01:38]} 15. e5 {[%clk 0:02:22]}  Ndxe5 {[%clk 0:01:29]} 16. fxe5 {[%clk 0:02:21]}  Qxe5 {[%clk 0:01:30]} 17. Nb5 {[%clk 0:02:04]}  Qxg3 {[%clk 0:01:22]} 18. Bf4 {[%clk 0:02:00]}  Qh4 {[%clk 0:01:07]} 19. Nxc7 {[%clk 0:01:59]}  Bd4+ {[%clk 0:00:56]} 20. Kh1 {[%clk 0:01:59]}  e5 {[%clk 0:00:27]} 21. Bh6 {[%clk 0:01:49]}  Rxf1+ {[%clk 0:00:18]} 22. Rxf1 {[%clk 0:01:50]}  Rc8 {[%clk 0:00:18]} 23. Ne6 {[%clk 0:01:37]}  Bxb2 {[%clk 0:00:15]} 24. Ng5 {[%clk 0:01:26]}  Qxh6 {[%clk 0:00:13]} 25. Bd5+ {[%clk 0:01:25]}  Kg7 {[%clk 0:00:02]} 26. Ne6+ {[%clk 0:01:24]}  Kh8 {[%clk 0:00:00]} 27. Qxh6 {[%clk 0:01:25]} 1-0

[Event "December 5 Late 2023"]
[Site "https://www.chess.com"]
[Date "2023.12.05"]
[Round "8"]
[White "DCacheiro"]
[Black "Vlassov, Nikolai"]
[Result "1-0"]
[Board "70"]
[TimeControl "180+1"]
[BlackFideId "4103360"]
[WhiteElo "2450"]
[BlackElo "2640"]
[BlackTeam "FID"]
[WhiteClock "0:00:52"]
[BlackClock "0:00:22"]

1. e4 {[%clk 0:03:00]}  c5 {[%clk 0:02:58]} 2. Nf3 {[%clk 0:03:01]}  d6 {[%clk 0:02:58]} 3. d4 {[%clk 0:03:01]}  cxd4 {[%clk 0:02:58]} 4. Nxd4 {[%clk 0:03:02]}  Nf6 {[%clk 0:02:59]} 5. Nc3 {[%clk 0:03:02]}  a6 {[%clk 0:02:59]} 6. Bg5 {[%clk 0:03:00]}  e6 {[%clk 0:02:56]} 7. f4 {[%clk 0:02:59]}  Be7 {[%clk 0:02:54]} 8. Qf3 {[%clk 0:02:59]}  Qc7 {[%clk 0:02:53]} 9. O-O-O {[%clk 0:02:59]}  h6 {[%clk 0:02:47]} 10. Bh4 {[%clk 0:02:56]}  Nbd7 {[%clk 0:02:45]} 11. Be2 {[%clk 0:02:55]}  b5 {[%clk 0:02:31]} 12. Bxf6 {[%clk 0:02:21]}  Bxf6 {[%clk 0:02:15]} 13. e5 {[%clk 0:02:09]}  Bb7 {[%clk 0:02:14]} 14. Ndxb5 {[%clk 0:02:02]}  axb5 {[%clk 0:02:08]} 15. Nxb5 {[%clk 0:02:03]}  Bxf3 {[%clk 0:01:53]} 16. Nxc7+ {[%clk 0:02:02]}  Kd8 {[%clk 0:01:40]} 17. Bxf3 {[%clk 0:01:55]}  Kxc7 {[%clk 0:01:36]} 18. Bxa8 {[%clk 0:01:45]}  dxe5 {[%clk 0:01:36]} 19. Bf3 {[%clk 0:01:38]}  exf4 {[%clk 0:01:33]} 20. Rd3 {[%clk 0:01:34]}  g5 {[%clk 0:01:29]} 21. Rhd1 {[%clk 0:01:32]}  Nc5 {[%clk 0:01:28]} 22. Ra3 {[%clk 0:01:28]}  Rb8 {[%clk 0:01:22]} 23. Ra7+ {[%clk 0:01:24]}  Nb7 {[%clk 0:01:04]} 24. Rxb7+ {[%clk 0:01:22]}  Rxb7 {[%clk 0:01:05]} 25. Bxb7 {[%clk 0:01:23]}  Kxb7 {[%clk 0:01:05]} 26. Rd7+ {[%clk 0:01:23]}  Kc6 {[%clk 0:01:06]} 27. Rxf7 {[%clk 0:01:24]}  Bd4 {[%clk 0:01:05]} 28. c3 {[%clk 0:01:18]}  Bg1 {[%clk 0:01:05]} 29. h3 {[%clk 0:01:16]}  Kd5 {[%clk 0:00:58]} 30. Rh7 {[%clk 0:01:08]}  e5 {[%clk 0:00:56]} 31. Rxh6 {[%clk 0:01:06]}  e4 {[%clk 0:00:56]} 32. Kd2 {[%clk 0:01:01]}  f3 {[%clk 0:00:53]} 33. gxf3 {[%clk 0:01:00]}  exf3 {[%clk 0:00:53]} 34. Rf6 {[%clk 0:01:00]}  Ke4 {[%clk 0:00:53]} 35. Rf8 {[%clk 0:00:55]}  Bc5 {[%clk 0:00:42]} 36. Rf7 {[%clk 0:00:54]}  Be3+ {[%clk 0:00:36]} 37. Ke1 {[%clk 0:00:53]}  Bf4 {[%clk 0:00:26]} 38. Rxf4+ {[%clk 0:00:51]}  Kxf4 {[%clk 0:00:22]} 39. Kf2 {[%clk 0:00:52]} 1-0

[Event "December 5 Late 2023"]
[Site "https://www.chess.com"]
[Date "2023.12.05"]
[Round "8"]
[White "Buchenau, Frank"]
[Black "Rangel, Daniel"]
[Result "0-1"]
[Board "73"]
[TimeControl "180+1"]
[WhiteFideId "4604350"]
[BlackFideId "2124475"]
[WhiteElo "2424"]
[BlackElo "2554"]
[WhiteTeam "GER"]
[BlackTeam "BRA"]
[WhiteClock "0:00:00"]
[BlackClock "0:00:25"]

1. e4 {[%clk 0:03:00]}  c5 {[%clk 0:02:58]} 2. Nf3 {[%clk 0:02:59]}  g6 {[%clk 0:02:58]} 3. c3 {[%clk 0:02:59]}  Bg7 {[%clk 0:02:58]} 4. d4 {[%clk 0:02:59]}  cxd4 {[%clk 0:02:59]} 5. cxd4 {[%clk 0:03:00]}  d5 {[%clk 0:02:59]} 6. e5 {[%clk 0:03:00]}  Bg4 {[%clk 0:02:59]} 7. Bb5+ {[%clk 0:03:00]}  Nd7 {[%clk 0:02:59]} 8. Nbd2 {[%clk 0:02:52]}  e6 {[%clk 0:02:58]} 9. O-O {[%clk 0:02:49]}  Ne7 {[%clk 0:02:57]} 10. h3 {[%clk 0:02:49]}  Bxf3 {[%clk 0:02:57]} 11. Nxf3 {[%clk 0:02:48]}  O-O {[%clk 0:02:57]} 12. Bg5 {[%clk 0:02:37]}  a6 {[%clk 0:02:54]} 13. Bd3 {[%clk 0:02:35]}  b5 {[%clk 0:02:47]} 14. Rc1 {[%clk 0:02:33]}  Nb6 {[%clk 0:02:37]} 15. b3 {[%clk 0:02:29]}  Qd7 {[%clk 0:02:37]} 16. Qd2 {[%clk 0:02:27]}  Nc6 {[%clk 0:02:13]} 17. Rc5 {[%clk 0:02:19]}  Rfc8 {[%clk 0:02:12]} 18. Bh6 {[%clk 0:02:13]}  Qb7 {[%clk 0:01:42]} 19. Rfc1 {[%clk 0:02:11]}  Nd7 {[%clk 0:01:40]} 20. R5c2 {[%clk 0:02:06]}  Ne7 {[%clk 0:01:33]} 21. Bxg7 {[%clk 0:02:04]}  Kxg7 {[%clk 0:01:32]} 22. Qg5 {[%clk 0:02:01]}  Ng8 {[%clk 0:01:29]} 23. h4 {[%clk 0:01:57]}  Rxc2 {[%clk 0:01:24]} 24. Rxc2 {[%clk 0:01:56]}  Rc8 {[%clk 0:01:25]} 25. Qc1 {[%clk 0:01:49]}  Rxc2 {[%clk 0:01:21]} 26. Qxc2 {[%clk 0:01:50]}  h5 {[%clk 0:01:19]} 27. Ng5 {[%clk 0:01:47]}  Qb6 {[%clk 0:01:05]} 28. Qc8 {[%clk 0:01:41]}  Nf8 {[%clk 0:00:55]} 29. Qe8 {[%clk 0:01:35]}  Nh6 {[%clk 0:00:43]} 30. Nf3 {[%clk 0:01:09]}  Qc7 {[%clk 0:00:43]} 31. Qa8 {[%clk 0:00:38]}  Qc1+ {[%clk 0:00:41]} 32. Kh2 {[%clk 0:00:22]}  Qf4+ {[%clk 0:00:35]} 33. Kg1 {[%clk 0:00:21]}  Qc1+ {[%clk 0:00:35]} 34. Kh2 {[%clk 0:00:20]}  Ng4+ {[%clk 0:00:27]} 35. Kg3 {[%clk 0:00:19]}  Qb2 {[%clk 0:00:28]} 36. Qxa6 {[%clk 0:00:15]}  Qxf2+ {[%clk 0:00:27]} 37. Kh3 {[%clk 0:00:00]}  Ne3 {[%clk 0:00:25]} 0-1